[Event "Titled Tuesday Blitz June 28 Early 2022"]
[White "Tari, Aryan"]
[Black "Golubev, Mikhail"]
[WhiteFideId "1510045"]
[BlackFideId "14100983"]
[WhiteElo "2567"]
[BlackElo "2374"]
[Result "1-0"]
[Round "03"]
[TimeControl "180+1"]
[Date "2022.06.28"]
[WhiteClock "0:00:50"]
[BlackClock "0:00:03"]

1. Nf3 {[%clk 0:03:00]}  d6 {[%clk 0:02:58]} 2. d4 {[%clk 0:02:56]}  Nf6 {[%clk 0:02:58]} 3. g3 {[%clk 0:02:42]}  g6 {[%clk 0:02:57]} 4. Bg2 {[%clk 0:02:43]}  Bg7 {[%clk 0:02:57]} 5. O-O {[%clk 0:02:43]}  O-O {[%clk 0:02:58]} 6. c4 {[%clk 0:02:44]}  Nbd7 {[%clk 0:02:58]} 7. Nc3 {[%clk 0:02:36]}  e5 {[%clk 0:02:57]} 8. Qc2 {[%clk 0:02:32]}  exd4 {[%clk 0:02:56]} 9. Nxd4 {[%clk 0:02:32]}  Nb6 {[%clk 0:02:57]} 10. b3 {[%clk 0:02:27]}  c5 {[%clk 0:02:47]} 11. Nf3 {[%clk 0:02:18]}  d5 {[%clk 0:02:41]} 12. cxd5 {[%clk 0:02:08]}  Nfxd5 {[%clk 0:02:16]} 13. Bb2 {[%clk 0:02:03]}  Bf5 {[%clk 0:01:28]} 14. Qc1 {[%clk 0:02:03]}  Qf6 {[%clk 0:01:12]} 15. Na4 {[%clk 0:02:01]}  Qe7 {[%clk 0:01:03]} 16. Bxg7 {[%clk 0:02:00]}  Kxg7 {[%clk 0:01:04]} 17. Qxc5 {[%clk 0:01:45]}  Qxe2 {[%clk 0:00:58]} 18. Nd4 {[%clk 0:01:40]}  Qe7 {[%clk 0:00:20]} 19. Nxf5+ {[%clk 0:01:30]}  gxf5 {[%clk 0:00:21]} 20. Qxe7 {[%clk 0:01:17]}  Nxe7 {[%clk 0:00:22]} 21. Bxb7 {[%clk 0:01:17]}  Rad8 {[%clk 0:00:21]} 22. Nxb6 {[%clk 0:01:16]}  axb6 {[%clk 0:00:21]} 23. Rfd1 {[%clk 0:01:11]}  Ng6 {[%clk 0:00:16]} 24. f4 {[%clk 0:01:11]}  Rde8 {[%clk 0:00:16]} 25. Kf2 {[%clk 0:01:10]}  h5 {[%clk 0:00:15]} 26. h4 {[%clk 0:01:10]}  Re7 {[%clk 0:00:15]} 27. Bf3 {[%clk 0:01:07]}  Rc8 {[%clk 0:00:12]} 28. Rac1 {[%clk 0:01:07]}  Rec7 {[%clk 0:00:12]} 29. Rxc7 {[%clk 0:01:06]}  Rxc7 {[%clk 0:00:12]} 30. Rd2 {[%clk 0:01:06]}  Kh6 {[%clk 0:00:13]} 31. a4 {[%clk 0:01:06]}  Nf8 {[%clk 0:00:12]} 32. b4 {[%clk 0:01:06]}  Ne6 {[%clk 0:00:12]} 33. a5 {[%clk 0:01:05]}  bxa5 {[%clk 0:00:12]} 34. bxa5 {[%clk 0:01:05]}  Ra7 {[%clk 0:00:13]} 35. Rd5 {[%clk 0:01:03]}  Kg6 {[%clk 0:00:10]} 36. Be2 {[%clk 0:01:03]}  Nc7 {[%clk 0:00:08]} 37. Rd6+ {[%clk 0:01:03]}  f6 {[%clk 0:00:08]} 38. a6 {[%clk 0:01:02]}  Kf7 {[%clk 0:00:07]} 39. Rd7+ {[%clk 0:01:01]}  Ke6 {[%clk 0:00:07]} 40. Rh7 {[%clk 0:00:56]}  Nb5 {[%clk 0:00:07]} 41. Rxh5 {[%clk 0:00:54]}  Nd4 {[%clk 0:00:06]} 42. Bc4+ {[%clk 0:00:52]}  Kd6 {[%clk 0:00:07]} 43. Rh6 {[%clk 0:00:52]}  Kc5 {[%clk 0:00:07]} 44. Bd3 {[%clk 0:00:52]}  Kb4 {[%clk 0:00:03]} 45. Rxf6 {[%clk 0:00:51]}  Kc3 {[%clk 0:00:03]} 46. Bf1 {[%clk 0:00:50]} 1-0


[Site "https://www.chess.com"]

[Event "Titled Tuesday Blitz June 28 Early 2022"]
[White "Thorhallsson, Simon"]
[Black "Balint, Vilmos"]
[WhiteFideId "2310090"]
[BlackFideId "718050"]
[WhiteElo "2137"]
[BlackElo "2059"]
[Result "1-0"]
[Round "03"]
[TimeControl "180+1"]
[Date "2022.06.28"]
[WhiteClock "0:01:52"]
[BlackClock "0:02:00"]

1. e4 {[%clk 0:02:59]}  e6 {[%clk 0:03:00]} 2. d4 {[%clk 0:02:59]}  d5 {[%clk 0:03:00]} 3. Nd2 {[%clk 0:02:59]}  Nf6 {[%clk 0:02:53]} 4. e5 {[%clk 0:02:59]}  Nfd7 {[%clk 0:02:53]} 5. c3 {[%clk 0:02:59]}  c5 {[%clk 0:02:53]} 6. Bd3 {[%clk 0:02:59]}  Nc6 {[%clk 0:02:53]} 7. Ne2 {[%clk 0:02:59]}  a6 {[%clk 0:02:53]} 8. f4 {[%clk 0:02:57]}  b5 {[%clk 0:02:53]} 9. Nf3 {[%clk 0:02:56]}  Qb6 {[%clk 0:02:52]} 10. O-O {[%clk 0:02:54]}  b4 {[%clk 0:02:52]} 11. Kh1 {[%clk 0:02:51]}  Bb7 {[%clk 0:02:52]} 12. f5 {[%clk 0:02:51]}  Be7 {[%clk 0:02:52]} 13. fxe6 {[%clk 0:02:45]}  fxe6 {[%clk 0:02:52]} 14. Ng5 {[%clk 0:02:45]}  Bxg5 {[%clk 0:02:47]} 15. Bxg5 {[%clk 0:02:46]}  Ncxe5 {[%clk 0:02:22]} 16. dxe5 {[%clk 0:02:39]}  Nxe5 {[%clk 0:02:23]} 17. Bc2 {[%clk 0:02:14]}  Nf7 {[%clk 0:02:16]} 18. Bh4 {[%clk 0:01:58]}  a5 {[%clk 0:02:08]} 19. Nf4 {[%clk 0:01:54]}  O-O {[%clk 0:02:04]} 20. Qd3 {[%clk 0:01:53]}  g6 {[%clk 0:02:00]} 21. Nxg6 {[%clk 0:01:52]} 1-0


[Site "https://www.chess.com"]

[Event "Titled Tuesday Blitz June 28 Early 2022"]
[White "Tifferet, Shaked"]
[Black "Sargissyan, Sargis"]
[WhiteFideId "2811529"]
[BlackFideId "13303210"]
[WhiteElo "2083"]
[BlackElo "2174"]
[Result "1/2-1/2"]
[Round "03"]
[TimeControl "180+1"]
[Date "2022.06.28"]
[WhiteClock "0:00:09"]
[BlackClock "0:00:12"]

1. e4 {[%clk 0:03:00]}  c5 {[%clk 0:02:57]} 2. Nf3 {[%clk 0:03:00]}  d6 {[%clk 0:02:56]} 3. Bc4 {[%clk 0:03:00]}  Nc6 {[%clk 0:02:55]} 4. O-O {[%clk 0:03:00]}  Nf6 {[%clk 0:02:53]} 5. Re1 {[%clk 0:02:59]}  e6 {[%clk 0:02:53]} 6. c3 {[%clk 0:02:59]}  Nxe4 {[%clk 0:02:44]} 7. d4 {[%clk 0:02:12]}  d5 {[%clk 0:02:38]} 8. Bd3 {[%clk 0:02:08]}  Nf6 {[%clk 0:02:34]} 9. dxc5 {[%clk 0:02:05]}  Bxc5 {[%clk 0:02:33]} 10. b4 {[%clk 0:02:06]}  Bb6 {[%clk 0:02:15]} 11. b5 {[%clk 0:02:06]}  Ne7 {[%clk 0:02:11]} 12. Bg5 {[%clk 0:01:57]}  Ng6 {[%clk 0:02:09]} 13. h4 {[%clk 0:01:56]}  h6 {[%clk 0:02:03]} 14. h5 {[%clk 0:01:50]}  hxg5 {[%clk 0:01:49]} 15. hxg6 {[%clk 0:01:50]}  Ng4 {[%clk 0:01:45]} 16. gxf7+ {[%clk 0:01:50]}  Kxf7 {[%clk 0:01:44]} 17. Ne5+ {[%clk 0:01:43]}  Nxe5 {[%clk 0:01:43]} 18. Rxe5 {[%clk 0:01:44]}  Bxf2+ {[%clk 0:01:32]} 19. Kxf2 {[%clk 0:01:41]}  Qf6+ {[%clk 0:01:32]} 20. Qf3 {[%clk 0:01:41]}  g4 {[%clk 0:01:26]} 21. Qxf6+ {[%clk 0:01:39]}  gxf6 {[%clk 0:01:26]} 22. Re1 {[%clk 0:01:39]}  e5 {[%clk 0:01:25]} 23. Nd2 {[%clk 0:01:36]}  e4 {[%clk 0:01:24]} 24. Bc2 {[%clk 0:01:36]}  Be6 {[%clk 0:01:23]} 25. Bb3 {[%clk 0:01:34]}  Rac8 {[%clk 0:01:21]} 26. Rac1 {[%clk 0:01:33]}  f5 {[%clk 0:01:20]} 27. Ke3 {[%clk 0:01:31]}  Rh2 {[%clk 0:01:14]} 28. Rg1 {[%clk 0:01:28]}  Kf6 {[%clk 0:01:09]} 29. c4 {[%clk 0:01:22]}  Ke5 {[%clk 0:01:04]} 30. cxd5 {[%clk 0:01:21]}  f4+ {[%clk 0:01:02]} 31. Ke2 {[%clk 0:01:20]}  Rxc1 {[%clk 0:00:47]} 32. Rxc1 {[%clk 0:01:21]}  f3+ {[%clk 0:00:46]} 33. Ke3 {[%clk 0:01:13]}  Rxg2 {[%clk 0:00:42]} 34. Re1 {[%clk 0:00:48]}  Bxd5 {[%clk 0:00:38]} 35. Bxd5 {[%clk 0:00:45]}  Kxd5 {[%clk 0:00:37]} 36. Nxe4 {[%clk 0:00:45]}  Kc4 {[%clk 0:00:18]} 37. Nd6+ {[%clk 0:00:29]}  Kc5 {[%clk 0:00:18]} 38. Nxb7+ {[%clk 0:00:16]}  Kxb5 {[%clk 0:00:17]} 39. Nd6+ {[%clk 0:00:10]}  Kc6 {[%clk 0:00:17]} 40. Ne4 {[%clk 0:00:10]}  Rxa2 {[%clk 0:00:16]} 41. Kf4 {[%clk 0:00:09]}  Re2 {[%clk 0:00:14]} 42. Rc1+ {[%clk 0:00:09]}  Kd7 {[%clk 0:00:11]} 43. Nf6+ {[%clk 0:00:08]}  Ke6 {[%clk 0:00:11]} 44. Nxg4 {[%clk 0:00:08]}  f2 {[%clk 0:00:11]} 45. Rf1 {[%clk 0:00:08]}  a5 {[%clk 0:00:11]} 46. Nxf2 {[%clk 0:00:07]}  a4 {[%clk 0:00:11]} 47. Ne4 {[%clk 0:00:07]}  a3 {[%clk 0:00:10]} 48. Ra1 {[%clk 0:00:07]}  Rc2 {[%clk 0:00:08]} 49. Rxa3 {[%clk 0:00:06]}  Rc4 {[%clk 0:00:07]} 50. Rg3 {[%clk 0:00:06]}  Ra4 {[%clk 0:00:07]} 51. Rg5 {[%clk 0:00:06]}  Ke7 {[%clk 0:00:07]} 52. Re5+ {[%clk 0:00:06]}  Kf7 {[%clk 0:00:07]} 53. Kf5 {[%clk 0:00:07]}  Ra1 {[%clk 0:00:06]} 54. Nd6+ {[%clk 0:00:06]}  Kf8 {[%clk 0:00:05]} 55. Kf6 {[%clk 0:00:04]}  Rf1+ {[%clk 0:00:04]} 56. Nf5 {[%clk 0:00:04]}  Kg8 {[%clk 0:00:04]} 57. Re8+ {[%clk 0:00:04]}  Kh7 {[%clk 0:00:04]} 58. Rf8 {[%clk 0:00:04]}  Rf2 {[%clk 0:00:04]} 59. Rf7+ {[%clk 0:00:04]}  Kh8 {[%clk 0:00:04]} 60. Re7 {[%clk 0:00:03]}  Rf1 {[%clk 0:00:03]} 61. Re4 {[%clk 0:00:03]}  Rf2 {[%clk 0:00:03]} 62. Rg4 {[%clk 0:00:04]}  Rf1 {[%clk 0:00:03]} 63. Kg6 {[%clk 0:00:04]}  Rh1 {[%clk 0:00:03]} 64. Nh6 {[%clk 0:00:04]}  Rxh6+ {[%clk 0:00:02]} 65. Kg5 {[%clk 0:00:02]}  Ra6 {[%clk 0:00:01]} 66. Kh5 {[%clk 0:00:03]}  Kh7 {[%clk 0:00:02]} 67. Rh4 {[%clk 0:00:03]}  Kh8 {[%clk 0:00:02]} 68. Kg5+ {[%clk 0:00:04]}  Kg8 {[%clk 0:00:03]} 69. Rg4 {[%clk 0:00:04]}  Kh8 {[%clk 0:00:03]} 70. Kf5 {[%clk 0:00:05]}  Kh7 {[%clk 0:00:03]} 71. Rf4 {[%clk 0:00:05]}  Ra5+ {[%clk 0:00:04]} 72. Ke6 {[%clk 0:00:05]}  Rb5 {[%clk 0:00:05]} 73. Kf7 {[%clk 0:00:06]}  Rb7+ {[%clk 0:00:05]} 74. Kf6 {[%clk 0:00:06]}  Rb6+ {[%clk 0:00:06]} 75. Ke7 {[%clk 0:00:06]}  Rb5 {[%clk 0:00:06]} 76. Ke6 {[%clk 0:00:06]}  Rb6+ {[%clk 0:00:07]} 77. Ke5 {[%clk 0:00:06]}  Ra6 {[%clk 0:00:07]} 78. Rf1 {[%clk 0:00:06]}  Ra5+ {[%clk 0:00:07]} 79. Kf6 {[%clk 0:00:06]}  Ra6+ {[%clk 0:00:08]} 80. Kf7 {[%clk 0:00:07]}  Ra7+ {[%clk 0:00:08]} 81. Kf8 {[%clk 0:00:07]}  Ra8+ {[%clk 0:00:09]} 82. Ke7 {[%clk 0:00:08]}  Ra7+ {[%clk 0:00:10]} 83. Ke6 {[%clk 0:00:08]}  Ra6+ {[%clk 0:00:11]} 84. Kf5 {[%clk 0:00:09]}  Ra5+ {[%clk 0:00:11]} 85. Kg4 {[%clk 0:00:09]}  Ra4+ {[%clk 0:00:12]} 86. Rf4 {[%clk 0:00:08]}  Rxf4+ {[%clk 0:00:12]} 87. Kxf4 {[%clk 0:00:09]} 1/2-1/2


[Site "https://www.chess.com"]

[Event "Titled Tuesday Blitz June 28 Early 2022"]
[White "Timofeev, Artyom"]
[Black "Lamaze, Simon"]
[WhiteFideId "4140419"]
[BlackFideId "36069264"]
[WhiteElo "2578"]
[BlackElo "2090"]
[Result "1-0"]
[Round "03"]
[TimeControl "180+1"]
[Date "2022.06.28"]
[WhiteClock "0:01:15"]
[BlackClock "0:02:00"]

1. e4 {[%clk 0:03:00]}  c5 {[%clk 0:02:59]} 2. Nc3 {[%clk 0:02:59]}  Nc6 {[%clk 0:02:58]} 3. Bb5 {[%clk 0:02:58]}  Nd4 {[%clk 0:02:58]} 4. Nf3 {[%clk 0:02:57]}  a6 {[%clk 0:02:59]} 5. Bd3 {[%clk 0:02:55]}  g6 {[%clk 0:02:58]} 6. Nxd4 {[%clk 0:02:50]}  cxd4 {[%clk 0:02:59]} 7. Ne2 {[%clk 0:02:51]}  d5 {[%clk 0:02:59]} 8. O-O {[%clk 0:02:44]}  Bg7 {[%clk 0:02:54]} 9. c3 {[%clk 0:02:39]}  dxc3 {[%clk 0:02:54]} 10. dxc3 {[%clk 0:02:38]}  dxe4 {[%clk 0:02:54]} 11. Bxe4 {[%clk 0:02:38]}  Qxd1 {[%clk 0:02:55]} 12. Rxd1 {[%clk 0:02:38]}  Nf6 {[%clk 0:02:56]} 13. Bf3 {[%clk 0:02:38]}  O-O {[%clk 0:02:57]} 14. h3 {[%clk 0:02:35]}  e5 {[%clk 0:02:53]} 15. Ng3 {[%clk 0:02:34]}  Re8 {[%clk 0:02:51]} 16. Be3 {[%clk 0:02:15]}  e4 {[%clk 0:02:48]} 17. Nxe4 {[%clk 0:02:07]}  Nxe4 {[%clk 0:02:25]} 18. Bxe4 {[%clk 0:02:07]}  Bf6 {[%clk 0:02:25]} 19. Bf3 {[%clk 0:02:04]}  Kg7 {[%clk 0:02:25]} 20. Re1 {[%clk 0:02:01]}  Bd7 {[%clk 0:02:22]} 21. Rad1 {[%clk 0:01:57]}  Be6 {[%clk 0:02:20]} 22. Bd4 {[%clk 0:01:47]}  Bxd4 {[%clk 0:02:18]} 23. Rxd4 {[%clk 0:01:46]}  Bxa2 {[%clk 0:02:18]} 24. Rxe8 {[%clk 0:01:42]}  Rxe8 {[%clk 0:02:19]} 25. Bxb7 {[%clk 0:01:43]}  Re1+ {[%clk 0:02:19]} 26. Kh2 {[%clk 0:01:42]}  Re2 {[%clk 0:02:20]} 27. b4 {[%clk 0:01:38]}  Rc2 {[%clk 0:02:20]} 28. Bxa6 {[%clk 0:01:36]}  Rxc3 {[%clk 0:02:19]} 29. Bd3 {[%clk 0:01:33]}  Rb3 {[%clk 0:02:16]} 30. b5 {[%clk 0:01:33]}  Rb2 {[%clk 0:02:16]} 31. Rd6 {[%clk 0:01:28]}  Rxf2 {[%clk 0:02:15]} 32. b6 {[%clk 0:01:28]}  Rb2 {[%clk 0:02:14]} 33. Be4 {[%clk 0:01:26]}  Bb1 {[%clk 0:02:11]} 34. Bf3 {[%clk 0:01:25]}  Kf8 {[%clk 0:02:09]} 35. b7 {[%clk 0:01:22]}  Ke7 {[%clk 0:02:09]} 36. Ra6 {[%clk 0:01:16]}  f5 {[%clk 0:02:00]} 37. Ra8 {[%clk 0:01:15]} 1-0


[Site "https://www.chess.com"]

[Event "Titled Tuesday Blitz June 28 Early 2022"]
[White "Torres Cueto, Jesus Marcial"]
[Black "Sadubayev, Airat"]
[WhiteFideId "4415280"]
[BlackFideId "13713264"]
[WhiteElo "2055"]
[BlackElo "2230"]
[Result "1-0"]
[Round "03"]
[TimeControl "180+1"]
[Date "2022.06.28"]
[WhiteClock "0:01:01"]
[BlackClock "0:00:01"]

1. d4 {[%clk 0:02:52]}  d5 {[%clk 0:02:54]} 2. c4 {[%clk 0:02:52]}  c6 {[%clk 0:02:53]} 3. Nc3 {[%clk 0:02:52]}  Nf6 {[%clk 0:02:52]} 4. Nf3 {[%clk 0:02:52]}  e6 {[%clk 0:02:50]} 5. Bf4 {[%clk 0:02:52]}  Nbd7 {[%clk 0:02:45]} 6. h3 {[%clk 0:02:50]}  Be7 {[%clk 0:02:37]} 7. e3 {[%clk 0:02:49]}  O-O {[%clk 0:02:37]} 8. Bd3 {[%clk 0:02:49]}  dxc4 {[%clk 0:02:30]} 9. Bxc4 {[%clk 0:02:50]}  Nb6 {[%clk 0:02:29]} 10. Bd3 {[%clk 0:02:49]}  Nbd5 {[%clk 0:02:27]} 11. Bg3 {[%clk 0:02:49]}  Bb4 {[%clk 0:02:14]} 12. Rc1 {[%clk 0:02:43]}  Qa5 {[%clk 0:02:12]} 13. Qb3 {[%clk 0:02:43]}  Bd7 {[%clk 0:01:49]} 14. O-O {[%clk 0:02:37]}  c5 {[%clk 0:01:07]} 15. a3 {[%clk 0:02:34]}  Bxc3 {[%clk 0:00:59]} 16. bxc3 {[%clk 0:02:35]}  b6 {[%clk 0:00:38]} 17. e4 {[%clk 0:02:24]}  Ba4 {[%clk 0:00:28]} 18. Qb2 {[%clk 0:02:19]}  Ne7 {[%clk 0:00:25]} 19. Bd6 {[%clk 0:02:10]}  Rfe8 {[%clk 0:00:22]} 20. Bf4 {[%clk 0:01:48]}  Ng6 {[%clk 0:00:15]} 21. Bd2 {[%clk 0:01:41]}  Rac8 {[%clk 0:00:09]} 22. e5 {[%clk 0:01:35]}  Nd7 {[%clk 0:00:05]} 23. c4 {[%clk 0:01:31]}  Qa6 {[%clk 0:00:05]} 24. d5 {[%clk 0:01:26]}  exd5 {[%clk 0:00:03]} 25. Bxg6 {[%clk 0:01:26]}  hxg6 {[%clk 0:00:02]} 26. cxd5 {[%clk 0:01:27]}  Qd3 {[%clk 0:00:01]} 27. e6 {[%clk 0:01:11]}  fxe6 {[%clk 0:00:01]} 28. dxe6 {[%clk 0:01:05]}  Rxe6 {[%clk 0:00:01]} 29. Bc3 {[%clk 0:01:05]}  Qf5 {[%clk 0:00:01]} 30. Bxg7 {[%clk 0:01:02]}  Rce8 {[%clk 0:00:01]} 31. Bh6 {[%clk 0:01:01]}  Re2 {[%clk 0:00:01]} 32. Qg7# {[%clk 0:01:01]} 1-0


[Site "https://www.chess.com"]

[Event "Titled Tuesday Blitz June 28 Early 2022"]
[White "Tymrakiewicz, Rafal"]
[Black "Libiszewski, Fabien"]
[WhiteFideId "1108832"]
[BlackFideId "616834"]
[WhiteElo "2205"]
[BlackElo "2440"]
[Result "0-1"]
[Round "03"]
[TimeControl "180+1"]
[Date "2022.06.28"]
[WhiteClock "0:00:02"]
[BlackClock "0:00:21"]

1. d4 {[%clk 0:03:00]}  Nf6 {[%clk 0:02:59]} 2. Bg5 {[%clk 0:02:59]}  c5 {[%clk 0:02:52]} 3. e3 {[%clk 0:02:55]}  e6 {[%clk 0:02:44]} 4. Nd2 {[%clk 0:02:52]}  Be7 {[%clk 0:02:31]} 5. Bd3 {[%clk 0:02:49]}  b6 {[%clk 0:02:23]} 6. Ngf3 {[%clk 0:02:46]}  Bb7 {[%clk 0:02:23]} 7. O-O {[%clk 0:02:46]}  h6 {[%clk 0:02:22]} 8. Bh4 {[%clk 0:02:45]}  O-O {[%clk 0:02:21]} 9. Qe2 {[%clk 0:02:45]}  d6 {[%clk 0:02:19]} 10. c3 {[%clk 0:02:44]}  Nc6 {[%clk 0:02:06]} 11. Rad1 {[%clk 0:02:36]}  Rc8 {[%clk 0:02:02]} 12. h3 {[%clk 0:02:21]}  Qc7 {[%clk 0:01:56]} 13. Bg3 {[%clk 0:02:21]}  Rfd8 {[%clk 0:01:52]} 14. Rfe1 {[%clk 0:02:13]}  Qb8 {[%clk 0:01:52]} 15. dxc5 {[%clk 0:02:04]}  bxc5 {[%clk 0:01:52]} 16. e4 {[%clk 0:02:05]}  Nd7 {[%clk 0:01:43]} 17. Nc4 {[%clk 0:01:55]}  Nde5 {[%clk 0:01:34]} 18. Nfxe5 {[%clk 0:01:48]}  Nxe5 {[%clk 0:01:34]} 19. Nxe5 {[%clk 0:01:32]}  dxe5 {[%clk 0:01:34]} 20. Bc4 {[%clk 0:01:33]}  Bc6 {[%clk 0:01:29]} 21. b3 {[%clk 0:01:23]}  Bf6 {[%clk 0:01:28]} 22. f3 {[%clk 0:01:03]}  Qb6 {[%clk 0:01:19]} 23. Bf2 {[%clk 0:01:02]}  a5 {[%clk 0:01:16]} 24. a4 {[%clk 0:00:49]}  Be7 {[%clk 0:01:14]} 25. Rxd8+ {[%clk 0:00:43]}  Rxd8 {[%clk 0:01:14]} 26. Rd1 {[%clk 0:00:43]}  Rb8 {[%clk 0:01:14]} 27. h4 {[%clk 0:00:37]}  h5 {[%clk 0:01:09]} 28. g3 {[%clk 0:00:35]}  g6 {[%clk 0:01:06]} 29. Be3 {[%clk 0:00:33]}  Kg7 {[%clk 0:00:57]} 30. Qd2 {[%clk 0:00:23]}  Rd8 {[%clk 0:00:56]} 31. Qe2 {[%clk 0:00:23]}  Rb8 {[%clk 0:00:56]} 32. Qd2 {[%clk 0:00:23]}  Rd8 {[%clk 0:00:45]} 33. Qe2 {[%clk 0:00:23]}  f5 {[%clk 0:00:44]} 34. Rxd8 {[%clk 0:00:15]}  Qxd8 {[%clk 0:00:43]} 35. Bxe6 {[%clk 0:00:15]}  fxe4 {[%clk 0:00:43]} 36. fxe4 {[%clk 0:00:15]}  Bxe4 {[%clk 0:00:40]} 37. Bf2 {[%clk 0:00:09]}  Qa8 {[%clk 0:00:32]} 38. Bc4 {[%clk 0:00:08]}  Bd6 {[%clk 0:00:28]} 39. Qd2 {[%clk 0:00:08]}  Qc6 {[%clk 0:00:27]} 40. Qe3 {[%clk 0:00:07]}  Bh1 {[%clk 0:00:27]} 41. Bf1 {[%clk 0:00:05]}  Bf3 {[%clk 0:00:26]} 42. Qd3 {[%clk 0:00:04]}  e4 {[%clk 0:00:27]} 43. Qb5 {[%clk 0:00:04]}  Qc7 {[%clk 0:00:25]} 44. Qc4 {[%clk 0:00:04]}  Bxg3 {[%clk 0:00:25]} 45. Qe6 {[%clk 0:00:02]}  Bh2# {[%clk 0:00:21]} 0-1


[Site "https://www.chess.com"]

[Event "Titled Tuesday Blitz June 28 Early 2022"]
[White "Vokhidov, Shamsiddin"]
[Black "Tatarinov, Dmitry"]
[WhiteFideId "14204223"]
[BlackFideId "24160067"]
[WhiteElo "2611"]
[BlackElo "2302"]
[Result "1/2-1/2"]
[Round "03"]
[TimeControl "180+1"]
[Date "2022.06.28"]
[WhiteClock "0:00:10"]
[BlackClock "0:00:50"]

1. e4 {[%clk 0:03:00]}  c6 {[%clk 0:02:59]} 2. d4 {[%clk 0:03:00]}  d5 {[%clk 0:03:00]} 3. exd5 {[%clk 0:03:01]}  cxd5 {[%clk 0:03:00]} 4. Bd3 {[%clk 0:03:01]}  Nc6 {[%clk 0:03:00]} 5. c3 {[%clk 0:03:02]}  Nf6 {[%clk 0:02:53]} 6. h3 {[%clk 0:03:02]}  e5 {[%clk 0:02:51]} 7. dxe5 {[%clk 0:03:03]}  Nxe5 {[%clk 0:02:52]} 8. Qe2 {[%clk 0:03:04]}  Qe7 {[%clk 0:02:51]} 9. Bb5+ {[%clk 0:03:01]}  Bd7 {[%clk 0:02:51]} 10. Be3 {[%clk 0:03:00]}  Bxb5 {[%clk 0:02:46]} 11. Qxb5+ {[%clk 0:03:01]}  Qd7 {[%clk 0:02:46]} 12. Qxd7+ {[%clk 0:03:00]}  Nexd7 {[%clk 0:02:47]} 13. Nd2 {[%clk 0:03:01]}  Bc5 {[%clk 0:02:46]} 14. Nf1 {[%clk 0:02:26]}  O-O {[%clk 0:02:45]} 15. O-O-O {[%clk 0:02:26]}  Rfe8 {[%clk 0:02:41]} 16. Nf3 {[%clk 0:02:22]}  Rac8 {[%clk 0:02:40]} 17. Bxc5 {[%clk 0:02:16]}  Nxc5 {[%clk 0:02:41]} 18. Ne3 {[%clk 0:02:16]}  Nce4 {[%clk 0:02:37]} 19. Rhf1 {[%clk 0:01:57]}  Nxf2 {[%clk 0:02:35]} 20. Rxf2 {[%clk 0:01:57]}  Rxe3 {[%clk 0:02:35]} 21. Nd4 {[%clk 0:01:58]}  Rce8 {[%clk 0:02:29]} 22. Nb5 {[%clk 0:01:40]}  Re2 {[%clk 0:02:26]} 23. Rxe2 {[%clk 0:01:38]}  Rxe2 {[%clk 0:02:27]} 24. Rd2 {[%clk 0:01:39]}  Re1+ {[%clk 0:02:21]} 25. Kc2 {[%clk 0:01:39]}  a6 {[%clk 0:02:21]} 26. Nd6 {[%clk 0:01:38]}  Re7 {[%clk 0:02:21]} 27. g4 {[%clk 0:01:31]}  h6 {[%clk 0:02:18]} 28. Nf5 {[%clk 0:01:27]}  Re6 {[%clk 0:02:17]} 29. Kd3 {[%clk 0:01:20]}  Kh7 {[%clk 0:02:16]} 30. Ne3 {[%clk 0:01:17]}  g6 {[%clk 0:02:16]} 31. Kd4 {[%clk 0:01:12]}  Re4+ {[%clk 0:02:11]} 32. Kd3 {[%clk 0:01:12]}  Ra4 {[%clk 0:02:09]} 33. a3 {[%clk 0:01:10]}  Kg7 {[%clk 0:02:09]} 34. Ke2 {[%clk 0:00:59]}  Re4 {[%clk 0:02:07]} 35. Kf3 {[%clk 0:01:00]}  Re5 {[%clk 0:02:01]} 36. Kf4 {[%clk 0:01:00]}  Re4+ {[%clk 0:01:54]} 37. Kf3 {[%clk 0:01:00]}  Re5 {[%clk 0:01:40]} 38. a4 {[%clk 0:01:00]}  h5 {[%clk 0:01:37]} 39. Rd4 {[%clk 0:00:58]}  hxg4+ {[%clk 0:01:36]} 40. hxg4 {[%clk 0:00:59]}  Re4 {[%clk 0:01:36]} 41. Rxe4 {[%clk 0:00:53]}  dxe4+ {[%clk 0:01:34]} 42. Kf4 {[%clk 0:00:53]}  Nd7 {[%clk 0:01:34]} 43. b4 {[%clk 0:00:50]}  Nb6 {[%clk 0:01:34]} 44. a5 {[%clk 0:00:48]}  Na4 {[%clk 0:01:31]} 45. Nd5 {[%clk 0:00:48]}  f5 {[%clk 0:01:17]} 46. gxf5 {[%clk 0:00:48]}  gxf5 {[%clk 0:01:18]} 47. Kxf5 {[%clk 0:00:49]}  e3 {[%clk 0:01:18]} 48. Nxe3 {[%clk 0:00:49]}  Nxc3 {[%clk 0:01:18]} 49. Ke6 {[%clk 0:00:50]}  Na4 {[%clk 0:01:14]} 50. Nc4 {[%clk 0:00:46]}  Nc3 {[%clk 0:01:12]} 51. Kd6 {[%clk 0:00:39]}  Kf6 {[%clk 0:01:07]} 52. Nb6 {[%clk 0:00:30]}  Na2 {[%clk 0:01:04]} 53. Nd5+ {[%clk 0:00:20]}  Kf5 {[%clk 0:01:02]} 54. Kc5 {[%clk 0:00:15]}  Ke5 {[%clk 0:01:00]} 55. Nb6 {[%clk 0:00:15]}  Nc3 {[%clk 0:00:58]} 56. Nc4+ {[%clk 0:00:15]}  Ke6 {[%clk 0:00:57]} 57. Kb6 {[%clk 0:00:16]}  Na2 {[%clk 0:00:57]} 58. Kxb7 {[%clk 0:00:11]}  Nxb4 {[%clk 0:00:57]} 59. Kb6 {[%clk 0:00:11]}  Kd5 {[%clk 0:00:56]} 60. Nd2 {[%clk 0:00:10]}  Nc6 {[%clk 0:00:50]} 61. Kxa6 {[%clk 0:00:10]}  Nxa5 {[%clk 0:00:50]} 1/2-1/2


[Site "https://www.chess.com"]

[Event "Titled Tuesday Blitz June 28 Early 2022"]
[White "Vovk, Orest"]
[Black "Vianello, Enrico"]
[WhiteFideId "14113490"]
[BlackFideId "810738"]
[WhiteElo "2203"]
[BlackElo "2249"]
[Result "1-0"]
[Round "03"]
[TimeControl "180+1"]
[Date "2022.06.28"]
[WhiteClock "0:01:45"]
[BlackClock "0:01:50"]

1. h4 {[%clk 0:02:56]}  d6 {[%clk 0:02:58]} 2. h5 {[%clk 0:02:56]}  e5 {[%clk 0:02:58]} 3. d4 {[%clk 0:02:56]}  exd4 {[%clk 0:02:56]} 4. Nf3 {[%clk 0:02:56]}  c5 {[%clk 0:02:55]} 5. c3 {[%clk 0:02:56]}  dxc3 {[%clk 0:02:55]} 6. Nxc3 {[%clk 0:02:57]}  Nc6 {[%clk 0:02:54]} 7. h6 {[%clk 0:02:57]}  g6 {[%clk 0:02:52]} 8. e4 {[%clk 0:02:56]}  Be6 {[%clk 0:02:48]} 9. Ng5 {[%clk 0:02:55]}  Qf6 {[%clk 0:02:44]} 10. Nxe6 {[%clk 0:02:51]}  fxe6 {[%clk 0:02:43]} 11. Bb5 {[%clk 0:02:49]}  Rc8 {[%clk 0:02:33]} 12. Qa4 {[%clk 0:02:48]}  a6 {[%clk 0:02:32]} 13. Bxc6+ {[%clk 0:02:46]}  Rxc6 {[%clk 0:02:33]} 14. Rh3 {[%clk 0:02:44]}  g5 {[%clk 0:02:30]} 15. Be3 {[%clk 0:02:38]}  Nxh6 {[%clk 0:02:25]} 16. O-O-O {[%clk 0:02:37]}  Nf7 {[%clk 0:02:24]} 17. Rf3 {[%clk 0:02:36]}  Qg6 {[%clk 0:02:23]} 18. Nd5 {[%clk 0:02:31]}  b5 {[%clk 0:02:15]} 19. Qa5 {[%clk 0:02:23]}  exd5 {[%clk 0:02:14]} 20. exd5 {[%clk 0:02:24]}  Rc8 {[%clk 0:02:14]} 21. Qxa6 {[%clk 0:02:22]}  Be7 {[%clk 0:02:03]} 22. Qxc8+ {[%clk 0:02:21]}  Nd8 {[%clk 0:02:02]} 23. Bxc5 {[%clk 0:02:08]}  g4 {[%clk 0:01:56]} 24. Re3 {[%clk 0:01:59]}  Kf8 {[%clk 0:01:56]} 25. Rxe7 {[%clk 0:01:53]}  Kxe7 {[%clk 0:01:56]} 26. Re1+ {[%clk 0:01:52]}  Kf7 {[%clk 0:01:55]} 27. Qd7+ {[%clk 0:01:50]}  Kf6 {[%clk 0:01:50]} 28. Bd4+ {[%clk 0:01:45]} 1-0


[Site "https://www.chess.com"]